[Event "Titled Tuesday Blitz November 15 Early 2022"]
[White "Schmakel, Sam"]
[Black "Shohat, Yotam"]
[WhiteFideId "2039311"]
[BlackFideId "2813955"]
[WhiteElo "2356"]
[BlackElo "2216"]
[Result "1-0"]
[Round "01"]
[TimeControl "180+1"]
[Date "2022.11.16"]
[WhiteClock "0:00:19"]
[BlackClock "0:00:05"]

1. d4 {[%clk 0:02:58]}  g6 {[%clk 0:02:59]} 2. c4 {[%clk 0:02:55]}  Nf6 {[%clk 0:02:58]} 3. f3 {[%clk 0:02:53]}  Nh5 {[%clk 0:02:55]} 4. Nh3 {[%clk 0:02:32]}  d5 {[%clk 0:02:44]} 5. Nf2 {[%clk 0:02:32]}  c6 {[%clk 0:02:39]} 6. e4 {[%clk 0:02:15]}  dxe4 {[%clk 0:02:38]} 7. fxe4 {[%clk 0:02:16]}  e5 {[%clk 0:02:38]} 8. Be3 {[%clk 0:02:01]}  exd4 {[%clk 0:02:32]} 9. Qxd4 {[%clk 0:02:02]}  Qxd4 {[%clk 0:02:15]} 10. Bxd4 {[%clk 0:02:03]}  Bg7 {[%clk 0:02:16]} 11. Bxg7 {[%clk 0:02:03]}  Nxg7 {[%clk 0:02:17]} 12. Nc3 {[%clk 0:02:04]}  O-O {[%clk 0:02:13]} 13. O-O-O {[%clk 0:02:04]}  Na6 {[%clk 0:02:10]} 14. a3 {[%clk 0:01:47]}  Nc5 {[%clk 0:02:08]} 15. b4 {[%clk 0:01:46]}  Nce6 {[%clk 0:02:04]} 16. e5 {[%clk 0:01:38]}  a5 {[%clk 0:01:53]} 17. Kb2 {[%clk 0:01:38]}  axb4 {[%clk 0:01:53]} 18. axb4 {[%clk 0:01:39]}  Nf5 {[%clk 0:01:47]} 19. Nfe4 {[%clk 0:01:37]}  Kg7 {[%clk 0:01:39]} 20. Nd6 {[%clk 0:01:21]}  Ne3 {[%clk 0:01:31]} 21. Re1 {[%clk 0:01:20]}  Nxf1 {[%clk 0:01:18]} 22. Rhxf1 {[%clk 0:01:21]}  Nc7 {[%clk 0:01:11]} 23. Nce4 {[%clk 0:01:09]}  Be6 {[%clk 0:01:07]} 24. Nc5 {[%clk 0:00:55]}  b6 {[%clk 0:01:01]} 25. Nxe6+ {[%clk 0:00:56]}  Nxe6 {[%clk 0:01:01]} 26. Ra1 {[%clk 0:00:54]}  Rxa1 {[%clk 0:00:36]} 27. Rxa1 {[%clk 0:00:54]}  f6 {[%clk 0:00:36]} 28. Ra7+ {[%clk 0:00:49]}  Kh6 {[%clk 0:00:35]} 29. Re7 {[%clk 0:00:47]}  Nd4 {[%clk 0:00:15]} 30. e6 {[%clk 0:00:48]}  Nf5 {[%clk 0:00:12]} 31. Nxf5+ {[%clk 0:00:40]}  gxf5 {[%clk 0:00:13]} 32. Rc7 {[%clk 0:00:35]}  f4 {[%clk 0:00:13]} 33. Rxc6 {[%clk 0:00:34]}  Rg8 {[%clk 0:00:13]} 34. g3 {[%clk 0:00:35]}  fxg3 {[%clk 0:00:10]} 35. hxg3 {[%clk 0:00:35]}  Rxg3 {[%clk 0:00:10]} 36. e7 {[%clk 0:00:28]}  Re3 {[%clk 0:00:09]} 37. Rxf6+ {[%clk 0:00:28]}  Kg5 {[%clk 0:00:10]} 38. Rxb6 {[%clk 0:00:29]}  Rxe7 {[%clk 0:00:10]} 39. c5 {[%clk 0:00:28]}  h5 {[%clk 0:00:09]} 40. Rb8 {[%clk 0:00:29]}  Rh7 {[%clk 0:00:07]} 41. c6 {[%clk 0:00:23]}  h4 {[%clk 0:00:07]} 42. b5 {[%clk 0:00:23]}  h3 {[%clk 0:00:07]} 43. Ra8 {[%clk 0:00:20]}  h2 {[%clk 0:00:05]} 44. Ra1 {[%clk 0:00:21]}  h1=Q {[%clk 0:00:04]} 45. Rxh1 {[%clk 0:00:20]}  Rxh1 {[%clk 0:00:05]} 46. c7 {[%clk 0:00:20]}  Rc1 {[%clk 0:00:05]} 47. Kxc1 {[%clk 0:00:19]} 1-0


[Site "https://www.chess.com"]

[Event "Titled Tuesday Blitz November 15 Early 2022"]
[White "Seemann, Jakub"]
[Black "Yu, Yangyi"]
[WhiteFideId "21874697"]
[BlackFideId "8603820"]
[WhiteElo "2275"]
[BlackElo "2808"]
[Result "0-1"]
[Round "01"]
[TimeControl "180+1"]
[Date "2022.11.15"]
[WhiteClock "0:00:24"]
[BlackClock "0:00:16"]

1. d4 {[%clk 0:03:00]}  Nf6 {[%clk 0:02:59]} 2. c4 {[%clk 0:02:59]}  e6 {[%clk 0:03:00]} 3. Nf3 {[%clk 0:02:59]}  d5 {[%clk 0:03:00]} 4. g3 {[%clk 0:02:59]}  Bb4+ {[%clk 0:02:58]} 5. Bd2 {[%clk 0:02:59]}  Be7 {[%clk 0:02:58]} 6. Bg2 {[%clk 0:02:59]}  O-O {[%clk 0:02:59]} 7. O-O {[%clk 0:03:00]}  c6 {[%clk 0:02:59]} 8. Qc2 {[%clk 0:03:00]}  a5 {[%clk 0:02:58]} 9. Nc3 {[%clk 0:02:55]}  dxc4 {[%clk 0:02:55]} 10. a4 {[%clk 0:02:46]}  Na6 {[%clk 0:02:52]} 11. Ne4 {[%clk 0:02:40]}  Nxe4 {[%clk 0:02:41]} 12. Qxe4 {[%clk 0:02:41]}  Nb4 {[%clk 0:02:39]} 13. Rfc1 {[%clk 0:02:35]}  Qd5 {[%clk 0:02:37]} 14. Qb1 {[%clk 0:02:32]}  b6 {[%clk 0:02:18]} 15. Ng5 {[%clk 0:02:23]}  Bxg5 {[%clk 0:01:56]} 16. Bxd5 {[%clk 0:02:21]}  Bxd2 {[%clk 0:01:56]} 17. Bxc4 {[%clk 0:02:19]}  Bxc1 {[%clk 0:01:55]} 18. Qxc1 {[%clk 0:02:20]}  Rd8 {[%clk 0:01:54]} 19. Qf4 {[%clk 0:02:18]}  Ra7 {[%clk 0:01:49]} 20. Rc1 {[%clk 0:02:12]}  Rad7 {[%clk 0:01:49]} 21. e3 {[%clk 0:02:12]}  Bb7 {[%clk 0:01:48]} 22. h4 {[%clk 0:02:12]}  h6 {[%clk 0:01:48]} 23. Kh2 {[%clk 0:02:02]}  c5 {[%clk 0:01:46]} 24. Bb5 {[%clk 0:01:59]}  Rd6 {[%clk 0:01:41]} 25. dxc5 {[%clk 0:01:36]}  bxc5 {[%clk 0:01:33]} 26. Rxc5 {[%clk 0:01:37]}  Nd5 {[%clk 0:01:09]} 27. Qe5 {[%clk 0:01:29]}  Nf6 {[%clk 0:01:07]} 28. Be2 {[%clk 0:00:52]}  Rd2 {[%clk 0:01:07]} 29. Qc7 {[%clk 0:00:42]}  R8d7 {[%clk 0:01:01]} 30. Qb8+ {[%clk 0:00:42]}  Kh7 {[%clk 0:01:00]} 31. Rc7 {[%clk 0:00:37]}  Rxe2 {[%clk 0:00:33]} 32. Rxd7 {[%clk 0:00:32]}  Ng4+ {[%clk 0:00:30]} 33. Kh3 {[%clk 0:00:27]}  Nxf2+ {[%clk 0:00:29]} 34. Kh2 {[%clk 0:00:28]}  Ng4+ {[%clk 0:00:19]} 35. Kh3 {[%clk 0:00:24]}  Bf3 {[%clk 0:00:16]} 0-1


[Site "https://www.chess.com"]

[Event "Titled Tuesday Blitz November 15 Early 2022"]
[White "Sipila, Vilka"]
[Black "Grapsa, Georgia"]
[WhiteFideId "505455"]
[BlackFideId "4206436"]
[WhiteElo "2347"]
[BlackElo "1877"]
[Result "1-0"]
[Round "01"]
[TimeControl "180+1"]
[Date "2022.11.16"]
[WhiteClock "0:00:53"]
[BlackClock "0:00:07"]

1. d4 {[%clk 0:03:00]}  Nf6 {[%clk 0:02:55]} 2. Bf4 {[%clk 0:02:57]}  e6 {[%clk 0:02:55]} 3. e3 {[%clk 0:02:56]}  d5 {[%clk 0:02:54]} 4. Nf3 {[%clk 0:02:54]}  Be7 {[%clk 0:02:52]} 5. Nbd2 {[%clk 0:02:52]}  O-O {[%clk 0:02:50]} 6. Bd3 {[%clk 0:02:51]}  b6 {[%clk 0:02:49]} 7. Ne5 {[%clk 0:02:49]}  c5 {[%clk 0:02:42]} 8. c3 {[%clk 0:02:48]}  Bb7 {[%clk 0:02:31]} 9. Qe2 {[%clk 0:02:47]}  Ne4 {[%clk 0:02:28]} 10. O-O-O {[%clk 0:02:45]}  f6 {[%clk 0:02:25]} 11. Nef3 {[%clk 0:02:34]}  Nd7 {[%clk 0:02:17]} 12. Bc2 {[%clk 0:02:30]}  Rc8 {[%clk 0:02:11]} 13. Nxe4 {[%clk 0:02:18]}  dxe4 {[%clk 0:02:12]} 14. Nd2 {[%clk 0:02:18]}  f5 {[%clk 0:02:12]} 15. dxc5 {[%clk 0:02:17]}  Rxc5 {[%clk 0:02:08]} 16. Nb3 {[%clk 0:02:09]}  Rc8 {[%clk 0:02:06]} 17. Nd4 {[%clk 0:02:08]}  Rf6 {[%clk 0:01:55]} 18. Bb3 {[%clk 0:02:06]}  Bd5 {[%clk 0:01:45]} 19. Bg5 {[%clk 0:01:56]}  Rg6 {[%clk 0:01:43]} 20. Bxe7 {[%clk 0:01:55]}  Qxe7 {[%clk 0:01:44]} 21. Nxf5 {[%clk 0:01:52]}  Qc5 {[%clk 0:01:37]} 22. Bxd5 {[%clk 0:01:49]}  exd5 {[%clk 0:01:33]} 23. Rxd5 {[%clk 0:01:50]}  Qf8 {[%clk 0:01:22]} 24. Rhd1 {[%clk 0:01:40]}  Nc5 {[%clk 0:01:20]} 25. g4 {[%clk 0:01:34]}  Nd3+ {[%clk 0:01:17]} 26. Kb1 {[%clk 0:01:33]}  h5 {[%clk 0:00:38]} 27. f3 {[%clk 0:01:31]}  hxg4 {[%clk 0:00:37]} 28. fxe4 {[%clk 0:01:30]}  Nc5 {[%clk 0:00:34]} 29. Qc4 {[%clk 0:01:28]}  Kh7 {[%clk 0:00:33]} 30. Nd6 {[%clk 0:01:22]}  Rd8 {[%clk 0:00:23]} 31. Rh5+ {[%clk 0:01:18]}  Rh6 {[%clk 0:00:23]} 32. Rxh6+ {[%clk 0:01:18]}  Kxh6 {[%clk 0:00:22]} 33. e5 {[%clk 0:01:19]}  Qf3 {[%clk 0:00:18]} 34. Rf1 {[%clk 0:01:10]}  Qxe3 {[%clk 0:00:15]} 35. Nf7+ {[%clk 0:01:08]}  Kg6 {[%clk 0:00:13]} 36. Nxd8 {[%clk 0:01:09]}  Nd3 {[%clk 0:00:12]} 37. Qf7+ {[%clk 0:01:01]}  Kh6 {[%clk 0:00:12]} 38. Qe6+ {[%clk 0:00:59]}  Kh7 {[%clk 0:00:11]} 39. Qxg4 {[%clk 0:00:56]}  Qd2 {[%clk 0:00:08]} 40. Qh5+ {[%clk 0:00:55]}  Kg8 {[%clk 0:00:07]} 41. Rf8+ {[%clk 0:00:54]}  Kxf8 {[%clk 0:00:07]} 42. Qf7# {[%clk 0:00:53]} 1-0


[Site "https://www.chess.com"]

[Event "Titled Tuesday Blitz November 15 Early 2022"]
[White "Slugin, Sergey"]
[Black "Lorenzo De La Riva, Lazaro"]
[WhiteFideId "4122569"]
[BlackFideId "2268809"]
[WhiteElo "2330"]
[BlackElo "2294"]
[Result "1-0"]
[Round "01"]
[TimeControl "180+1"]
[Date "2022.11.16"]
[WhiteClock "0:00:46"]
[BlackClock "0:00:02"]

1. Nf3 {[%clk 0:02:55]}  Nf6 {[%clk 0:02:55]} 2. g3 {[%clk 0:02:55]}  d5 {[%clk 0:02:47]} 3. Bg2 {[%clk 0:02:56]}  e6 {[%clk 0:02:47]} 4. O-O {[%clk 0:02:56]}  Be7 {[%clk 0:02:47]} 5. d4 {[%clk 0:02:57]}  O-O {[%clk 0:02:48]} 6. c4 {[%clk 0:02:58]}  dxc4 {[%clk 0:02:49]} 7. Qc2 {[%clk 0:02:58]}  a6 {[%clk 0:02:49]} 8. a4 {[%clk 0:02:59]}  Bd7 {[%clk 0:02:48]} 9. Bg5 {[%clk 0:02:59]}  Bc6 {[%clk 0:02:27]} 10. a5 {[%clk 0:02:54]}  h6 {[%clk 0:02:19]} 11. Bxf6 {[%clk 0:02:54]}  Bxf6 {[%clk 0:02:19]} 12. Rd1 {[%clk 0:02:36]}  Nd7 {[%clk 0:01:50]} 13. Qxc4 {[%clk 0:02:35]}  Bxf3 {[%clk 0:01:42]} 14. Bxf3 {[%clk 0:02:35]}  Ne5 {[%clk 0:01:41]} 15. Qb3 {[%clk 0:02:31]}  Nxf3+ {[%clk 0:01:34]} 16. Qxf3 {[%clk 0:02:32]}  c6 {[%clk 0:01:21]} 17. Qb3 {[%clk 0:02:24]}  Qd5 {[%clk 0:01:17]} 18. Ra3 {[%clk 0:02:17]}  Rfd8 {[%clk 0:01:08]} 19. e3 {[%clk 0:02:16]}  c5 {[%clk 0:00:58]} 20. Qxd5 {[%clk 0:02:14]}  Rxd5 {[%clk 0:00:56]} 21. Nc3 {[%clk 0:02:14]}  Rd7 {[%clk 0:00:41]} 22. dxc5 {[%clk 0:02:14]}  Rxd1+ {[%clk 0:00:39]} 23. Nxd1 {[%clk 0:02:15]}  Rc8 {[%clk 0:00:40]} 24. Rb3 {[%clk 0:01:39]}  Rxc5 {[%clk 0:00:40]} 25. Rxb7 {[%clk 0:01:40]}  Rxa5 {[%clk 0:00:40]} 26. Kf1 {[%clk 0:01:38]}  Rb5 {[%clk 0:00:33]} 27. Rxb5 {[%clk 0:01:34]}  axb5 {[%clk 0:00:34]} 28. Ke2 {[%clk 0:01:32]}  Kf8 {[%clk 0:00:33]} 29. Kd3 {[%clk 0:01:27]}  Ke7 {[%clk 0:00:33]} 30. e4 {[%clk 0:01:27]}  g5 {[%clk 0:00:31]} 31. f4 {[%clk 0:01:23]}  gxf4 {[%clk 0:00:24]} 32. gxf4 {[%clk 0:01:24]}  e5 {[%clk 0:00:23]} 33. f5 {[%clk 0:01:25]}  Kd6 {[%clk 0:00:24]} 34. b4 {[%clk 0:01:21]}  Bh4 {[%clk 0:00:22]} 35. Nc3 {[%clk 0:01:21]}  Kc6 {[%clk 0:00:21]} 36. Ke2 {[%clk 0:01:20]}  Be7 {[%clk 0:00:18]} 37. Nd5 {[%clk 0:01:21]}  Bd6 {[%clk 0:00:18]} 38. Kf3 {[%clk 0:01:18]}  h5 {[%clk 0:00:17]} 39. Ke2 {[%clk 0:01:18]}  Bf8 {[%clk 0:00:15]} 40. Kd3 {[%clk 0:01:18]}  Kd6 {[%clk 0:00:14]} 41. Nf6 {[%clk 0:01:15]}  Kc6 {[%clk 0:00:11]} 42. Kc3 {[%clk 0:01:12]}  h4 {[%clk 0:00:11]} 43. Nd5 {[%clk 0:01:12]}  h3 {[%clk 0:00:08]} 44. Nf6 {[%clk 0:01:03]}  Bh6 {[%clk 0:00:07]} 45. Ng4 {[%clk 0:00:55]}  Bf4 {[%clk 0:00:06]} 46. Kd3 {[%clk 0:00:56]}  Kd6 {[%clk 0:00:05]} 47. Nf2 {[%clk 0:00:52]}  Bxh2 {[%clk 0:00:03]} 48. Nxh3 {[%clk 0:00:53]}  Bg3 {[%clk 0:00:04]} 49. Ng5 {[%clk 0:00:53]}  f6 {[%clk 0:00:04]} 50. Nf3 {[%clk 0:00:52]}  Bf4 {[%clk 0:00:04]} 51. Nh4 {[%clk 0:00:50]}  Bg5 {[%clk 0:00:04]} 52. Nf3 {[%clk 0:00:42]}  Bh6 {[%clk 0:00:04]} 53. Ng1 {[%clk 0:00:42]}  Bf8 {[%clk 0:00:05]} 54. Ne2 {[%clk 0:00:43]}  Kc6 {[%clk 0:00:05]} 55. Kc3 {[%clk 0:00:43]}  Kd6 {[%clk 0:00:06]} 56. Kb3 {[%clk 0:00:43]}  Kc6 {[%clk 0:00:06]} 57. Nc3 {[%clk 0:00:43]}  Bg7 {[%clk 0:00:06]} 58. Nd5 {[%clk 0:00:44]}  Kd6 {[%clk 0:00:06]} 59. Kc3 {[%clk 0:00:44]}  Kc6 {[%clk 0:00:06]} 60. Kd3 {[%clk 0:00:45]}  Kd6 {[%clk 0:00:07]} 61. Ke3 {[%clk 0:00:45]}  Bh6+ {[%clk 0:00:07]} 62. Kf3 {[%clk 0:00:44]}  Bg5 {[%clk 0:00:07]} 63. Kg4 {[%clk 0:00:44]}  Kd7 {[%clk 0:00:06]} 64. Kh5 {[%clk 0:00:45]}  Ke8 {[%clk 0:00:03]} 65. Kg6 {[%clk 0:00:45]}  Kd7 {[%clk 0:00:03]} 66. Nxf6+ {[%clk 0:00:45]}  Bxf6 {[%clk 0:00:02]} 67. Kxf6 {[%clk 0:00:46]} 1-0


[Site "https://www.chess.com"]

[Event "Titled Tuesday Blitz November 15 Early 2022"]
[White "Stankovic, Ivan G"]
[Black "Concio, Michael Jr."]
[WhiteFideId "902837"]
[BlackFideId "5217873"]
[WhiteElo "2226"]
[BlackElo "2236"]
[Result "1-0"]
[Round "01"]
[TimeControl "180+1"]
[Date "2022.11.16"]
[WhiteClock "0:00:06"]
[BlackClock "0:00:05"]

1. e4 {[%clk 0:02:57]}  e5 {[%clk 0:02:57]} 2. d4 {[%clk 0:02:57]}  exd4 {[%clk 0:02:57]} 3. Qxd4 {[%clk 0:02:58]}  Nc6 {[%clk 0:02:57]} 4. Qe3 {[%clk 0:02:59]}  Qf6 {[%clk 0:02:43]} 5. Nc3 {[%clk 0:02:54]}  Bb4 {[%clk 0:02:40]} 6. Bd2 {[%clk 0:02:52]}  Nge7 {[%clk 0:02:38]} 7. O-O-O {[%clk 0:02:49]}  O-O {[%clk 0:02:34]} 8. Nb5 {[%clk 0:02:24]}  Bxd2+ {[%clk 0:01:56]} 9. Rxd2 {[%clk 0:02:21]}  a6 {[%clk 0:01:20]} 10. Nxc7 {[%clk 0:02:19]}  Rb8 {[%clk 0:01:21]} 11. f4 {[%clk 0:02:03]}  Nb4 {[%clk 0:00:58]} 12. a3 {[%clk 0:01:55]}  Qc6 {[%clk 0:00:58]} 13. axb4 {[%clk 0:01:49]}  Qxc7 {[%clk 0:00:59]} 14. e5 {[%clk 0:01:41]}  Nf5 {[%clk 0:00:56]} 15. Qc5 {[%clk 0:01:38]}  Qc6 {[%clk 0:00:44]} 16. Nf3 {[%clk 0:01:36]}  b6 {[%clk 0:00:41]} 17. Qxc6 {[%clk 0:01:29]}  dxc6 {[%clk 0:00:42]} 18. Bd3 {[%clk 0:01:25]}  Ne7 {[%clk 0:00:42]} 19. Be4 {[%clk 0:01:23]}  Bf5 {[%clk 0:00:42]} 20. Bxf5 {[%clk 0:01:23]}  Nxf5 {[%clk 0:00:43]} 21. g4 {[%clk 0:01:20]}  Ne3 {[%clk 0:00:28]} 22. h3 {[%clk 0:01:18]}  Rbd8 {[%clk 0:00:28]} 23. Nd4 {[%clk 0:01:12]}  Rc8 {[%clk 0:00:16]} 24. Re1 {[%clk 0:01:09]}  Nc4 {[%clk 0:00:12]} 25. Rd3 {[%clk 0:01:05]}  c5 {[%clk 0:00:12]} 26. bxc5 {[%clk 0:01:04]}  Rxc5 {[%clk 0:00:13]} 27. Nf5 {[%clk 0:01:02]}  g6 {[%clk 0:00:12]} 28. Nd6 {[%clk 0:00:54]}  Kg7 {[%clk 0:00:11]} 29. Ne4 {[%clk 0:00:50]}  Rc7 {[%clk 0:00:09]} 30. Nf6 {[%clk 0:00:50]}  b5 {[%clk 0:00:07]} 31. Red1 {[%clk 0:00:48]}  Rfc8 {[%clk 0:00:06]} 32. c3 {[%clk 0:00:39]}  g5 {[%clk 0:00:06]} 33. Nh5+ {[%clk 0:00:27]}  Kf8 {[%clk 0:00:06]} 34. Rd8+ {[%clk 0:00:25]}  Rxd8 {[%clk 0:00:06]} 35. Rxd8+ {[%clk 0:00:25]}  Ke7 {[%clk 0:00:07]} 36. Rh8 {[%clk 0:00:18]}  b4 {[%clk 0:00:08]} 37. b3 {[%clk 0:00:17]}  Ne3 {[%clk 0:00:04]} 38. c4 {[%clk 0:00:16]}  a5 {[%clk 0:00:04]} 39. Rxh7 {[%clk 0:00:16]}  gxf4 {[%clk 0:00:04]} 40. g5 {[%clk 0:00:15]}  Ke6 {[%clk 0:00:03]} 41. g6 {[%clk 0:00:13]}  fxg6 {[%clk 0:00:02]} 42. Nxf4+ {[%clk 0:00:11]}  Kxe5 {[%clk 0:00:02]} 43. Rxc7 {[%clk 0:00:06]}  Kxf4 {[%clk 0:00:03]} 44. Ra7 {[%clk 0:00:07]}  Nf5 {[%clk 0:00:03]} 45. Rxa5 {[%clk 0:00:07]}  Nd4 {[%clk 0:00:04]} 46. Kb2 {[%clk 0:00:05]}  Nf3 {[%clk 0:00:03]} 47. Rb5 {[%clk 0:00:05]}  Ng5 {[%clk 0:00:04]} 48. Rxb4 {[%clk 0:00:05]}  Nxh3 {[%clk 0:00:04]} 49. c5+ {[%clk 0:00:06]}  Ke5 {[%clk 0:00:05]} 50. Rc4 {[%clk 0:00:06]} 1-0


[Site "https://www.chess.com"]

[Event "Titled Tuesday Blitz November 15 Early 2022"]
[White "Taboas Rodriguez, Daniel"]
[Black "Cramling Bellon, Anna"]
[WhiteFideId "2208466"]
[BlackFideId "32009232"]
[WhiteElo "2329"]
[BlackElo "1972"]
[Result "1-0"]
[Round "01"]
[TimeControl "180+1"]
[Date "2022.11.16"]
[WhiteClock "0:00:26"]
[BlackClock "0:00:03"]

1. d4 {[%clk 0:02:59]}  Nf6 {[%clk 0:02:57]} 2. Nf3 {[%clk 0:02:56]}  d5 {[%clk 0:02:56]} 3. c4 {[%clk 0:02:51]}  e6 {[%clk 0:02:46]} 4. Nc3 {[%clk 0:02:50]}  c6 {[%clk 0:02:45]} 5. Bg5 {[%clk 0:02:50]}  Be7 {[%clk 0:02:42]} 6. e3 {[%clk 0:02:48]}  Nbd7 {[%clk 0:02:42]} 7. Bd3 {[%clk 0:02:48]}  dxc4 {[%clk 0:02:43]} 8. Bxc4 {[%clk 0:02:47]}  b5 {[%clk 0:02:44]} 9. Bd3 {[%clk 0:02:47]}  Bb7 {[%clk 0:02:44]} 10. O-O {[%clk 0:02:47]}  a6 {[%clk 0:02:41]} 11. Bxf6 {[%clk 0:02:46]}  Nxf6 {[%clk 0:02:41]} 12. Ne4 {[%clk 0:02:46]}  O-O {[%clk 0:02:16]} 13. Rc1 {[%clk 0:02:45]}  Rc8 {[%clk 0:02:10]} 14. Nc5 {[%clk 0:02:32]}  Bxc5 {[%clk 0:02:01]} 15. Rxc5 {[%clk 0:02:33]}  Nd7 {[%clk 0:01:53]} 16. Rh5 {[%clk 0:02:27]}  g6 {[%clk 0:01:52]} 17. Rh3 {[%clk 0:02:25]}  c5 {[%clk 0:01:51]} 18. Bb1 {[%clk 0:02:17]}  cxd4 {[%clk 0:01:42]} 19. Nxd4 {[%clk 0:02:18]}  Ne5 {[%clk 0:01:37]} 20. b3 {[%clk 0:01:56]}  Qd5 {[%clk 0:01:25]} 21. f3 {[%clk 0:01:40]}  Rfd8 {[%clk 0:01:25]} 22. Qe1 {[%clk 0:01:40]}  Nc6 {[%clk 0:01:13]} 23. Qh4 {[%clk 0:01:39]}  h5 {[%clk 0:01:02]} 24. Be4 {[%clk 0:01:05]}  Qd6 {[%clk 0:00:37]} 25. Qg5 {[%clk 0:00:46]}  e5 {[%clk 0:00:22]} 26. Nxc6 {[%clk 0:00:35]}  Bxc6 {[%clk 0:00:20]} 27. Bxc6 {[%clk 0:00:36]}  Rxc6 {[%clk 0:00:03]} 28. Rxh5 {[%clk 0:00:35]}  f6 {[%clk 0:00:02]} 29. Qxg6+ {[%clk 0:00:35]}  Kf8 {[%clk 0:00:02]} 30. Rh8+ {[%clk 0:00:24]}  Ke7 {[%clk 0:00:02]} 31. Rh7+ {[%clk 0:00:25]}  Ke6 {[%clk 0:00:03]} 32. Qf7+ {[%clk 0:00:26]}  Kf5 {[%clk 0:00:03]} 33. Rh5# {[%clk 0:00:26]} 1-0


[Site "https://www.chess.com"]

[Event "Titled Tuesday Blitz November 15 Early 2022"]
[White "Talibov, Shiroghlan"]
[Black "Melaugh, Shane"]
[WhiteFideId "13429078"]
[BlackFideId "2509580"]
[WhiteElo "2261"]
[BlackElo "2025"]
[Result "1-0"]
[Round "01"]
[TimeControl "180+1"]
[Date "2022.11.16"]
[WhiteClock "0:01:54"]
[BlackClock "0:00:34"]

1. c4 {[%clk 0:02:59]}  e5 {[%clk 0:02:59]} 2. Nc3 {[%clk 0:02:59]}  Nc6 {[%clk 0:02:58]} 3. Nf3 {[%clk 0:02:59]}  f5 {[%clk 0:02:57]} 4. d4 {[%clk 0:02:56]}  e4 {[%clk 0:02:57]} 5. d5 {[%clk 0:02:56]}  exf3 {[%clk 0:02:50]} 6. dxc6 {[%clk 0:02:56]}  fxg2 {[%clk 0:02:44]} 7. cxd7+ {[%clk 0:02:56]}  Qxd7 {[%clk 0:02:42]} 8. Qxd7+ {[%clk 0:02:55]}  Bxd7 {[%clk 0:02:43]} 9. Bxg2 {[%clk 0:02:55]}  O-O-O {[%clk 0:02:44]} 10. Bf4 {[%clk 0:02:52]}  Bb4 {[%clk 0:02:43]} 11. O-O-O {[%clk 0:02:45]}  Bxc3 {[%clk 0:02:41]} 12. bxc3 {[%clk 0:02:46]}  Nf6 {[%clk 0:02:40]} 13. e3 {[%clk 0:02:37]}  Ne4 {[%clk 0:02:34]} 14. Bxe4 {[%clk 0:02:23]}  fxe4 {[%clk 0:02:35]} 15. Rd4 {[%clk 0:02:23]}  Bf5 {[%clk 0:01:45]} 16. Rg1 {[%clk 0:02:21]}  g6 {[%clk 0:01:42]} 17. h4 {[%clk 0:02:20]}  h5 {[%clk 0:01:16]} 18. Rgd1 {[%clk 0:02:17]}  Rxd4 {[%clk 0:01:08]} 19. cxd4 {[%clk 0:02:16]}  b6 {[%clk 0:01:03]} 20. Kb2 {[%clk 0:02:15]}  Kd7 {[%clk 0:01:03]} 21. Kc3 {[%clk 0:02:14]}  c6 {[%clk 0:01:01]} 22. Rb1 {[%clk 0:02:14]}  Rc8 {[%clk 0:00:59]} 23. a4 {[%clk 0:02:14]}  c5 {[%clk 0:00:47]} 24. d5 {[%clk 0:02:12]}  Rf8 {[%clk 0:00:43]} 25. a5 {[%clk 0:02:10]}  bxa5 {[%clk 0:00:38]} 26. Rb7+ {[%clk 0:02:10]}  Ke8 {[%clk 0:00:37]} 27. Rxa7 {[%clk 0:02:08]}  Rf6 {[%clk 0:00:37]} 28. Rxa5 {[%clk 0:02:07]}  Bg4 {[%clk 0:00:38]} 29. Rxc5 {[%clk 0:02:06]}  g5 {[%clk 0:00:36]} 30. hxg5 {[%clk 0:02:04]}  Ra6 {[%clk 0:00:36]} 31. Kd4 {[%clk 0:02:02]}  Bf3 {[%clk 0:00:36]} 32. Rc8+ {[%clk 0:01:59]}  Kd7 {[%clk 0:00:36]} 33. Rc7+ {[%clk 0:02:00]}  Ke8 {[%clk 0:00:37]} 34. c5 {[%clk 0:02:00]}  Kf8 {[%clk 0:00:33]} 35. c6 {[%clk 0:01:59]}  Ke8 {[%clk 0:00:33]} 36. Rh7 {[%clk 0:01:58]}  Kf8 {[%clk 0:00:33]} 37. g6 {[%clk 0:01:58]}  Kg8 {[%clk 0:00:34]} 38. Rb7 {[%clk 0:01:54]} 1-0


[Site "https://www.chess.com"]

[Event "Titled Tuesday Blitz November 15 Early 2022"]
[White "Tasev, Dejan"]
[Black "Onslow, Alfie"]
[WhiteFideId "936618"]
[BlackFideId "436976"]
[WhiteElo "2256"]
[BlackElo "2015"]
[Result "1-0"]
[Round "01"]
[TimeControl "180+1"]
[Date "2022.11.16"]
[WhiteClock "0:00:44"]
[BlackClock "0:00:02"]

1. e4 {[%clk 0:03:00]}  g6 {[%clk 0:02:59]} 2. d4 {[%clk 0:03:00]}  Bg7 {[%clk 0:02:59]} 3. Nc3 {[%clk 0:03:00]}  c6 {[%clk 0:02:59]} 4. Nf3 {[%clk 0:02:59]}  d5 {[%clk 0:02:59]} 5. exd5 {[%clk 0:02:59]}  cxd5 {[%clk 0:02:59]} 6. h3 {[%clk 0:02:59]}  Nf6 {[%clk 0:02:59]} 7. Be3 {[%clk 0:02:58]}  O-O {[%clk 0:03:00]} 8. Bd3 {[%clk 0:02:57]}  Nc6 {[%clk 0:03:00]} 9. a3 {[%clk 0:02:57]}  a6 {[%clk 0:02:52]} 10. Qd2 {[%clk 0:02:57]}  b5 {[%clk 0:02:44]} 11. Bh6 {[%clk 0:02:56]}  Na5 {[%clk 0:02:25]} 12. Bxg7 {[%clk 0:02:54]}  Kxg7 {[%clk 0:02:26]} 13. b3 {[%clk 0:02:48]}  Bb7 {[%clk 0:02:22]} 14. O-O {[%clk 0:02:42]}  Rc8 {[%clk 0:02:13]} 15. Ne2 {[%clk 0:02:39]}  Ne4 {[%clk 0:02:10]} 16. Qe3 {[%clk 0:02:36]}  e6 {[%clk 0:01:57]} 17. a4 {[%clk 0:02:24]}  b4 {[%clk 0:01:49]} 18. Nd2 {[%clk 0:02:11]}  Nc3 {[%clk 0:01:43]} 19. Ng3 {[%clk 0:02:04]}  Nc6 {[%clk 0:01:38]} 20. Nf3 {[%clk 0:01:48]}  Qb6 {[%clk 0:01:31]} 21. Nh5+ {[%clk 0:01:34]}  gxh5 {[%clk 0:00:35]} 22. Qg5+ {[%clk 0:01:28]}  Kh8 {[%clk 0:00:35]} 23. Qf6+ {[%clk 0:01:02]}  Kg8 {[%clk 0:00:35]} 24. Bxh7+ {[%clk 0:00:53]}  Kxh7 {[%clk 0:00:36]} 25. Ng5+ {[%clk 0:00:52]}  Kg8 {[%clk 0:00:36]} 26. Qh6 {[%clk 0:00:50]}  Ne2+ {[%clk 0:00:18]} 27. Kh1 {[%clk 0:00:45]}  Rfe8 {[%clk 0:00:01]} 28. Qh7+ {[%clk 0:00:44]}  Kf8 {[%clk 0:00:02]} 29. Qxf7# {[%clk 0:00:44]} 1-0


[Site "https://www.chess.com"]